Workbook

Sheet REZUMATUL BUGETULUI
B2: RAPORTUL REZUMATUL BUGETULUI | I2: =YEAR(TODAY()) -> 2019
B3: Numele firmei
B4: Celulele gri sunt calculate pentru dvs. și, în general, nu trebuie modificate.
B5: Rezumat pentru profit și pierderi | C5: Date reale pentru luna mai | D5: Obiective pentru luna mai | E5: Varianță lunară | F5: Date reale de la începutul anului până azi | G5: Obiective de la începutul anului până azi | H5: Varianță de la începutul anului până azi | I5: Note
B6: Venit | C6: 1,200,000.00 lei | D6: 1,100,000.00 lei | E6: =C6-D6 -> 100,000.00 lei | F6: 6,200,000.00 lei | G6: 6,000,000.00 lei | H6: =F6-G6 -> 200,000.00 lei | I6: În luna mai am depășit obiectivul privind venitul cu 9% datorită executării mai bune din regiunea de vest.
B7: Marja brută | C7: 150,000.00 lei | D7: 160,000.00 lei | E7: =C7-D7 -> -10,000.00 lei | F7: 640,000.00 lei | G7: 750,000.00 lei | H7: =F7-G7 -> -110,000.00 lei
B8: Procent marjă brută | C8: =IF(C6=0,0,C7/C6) -> 12.5% | D8: =IF(D6=0,0,D7/D6) -> 14.5% | E8: =C8-D8 -> -2.0% | F8: =IF(F6=0,0,F7/F6) -> 10.3% | G8: =IF(G6=0,0,G7/G6) -> 12.5% | H8: =F8-G8 -> -2.2%
B9: Vânzări de produse noi | C9: 200,000.00 lei | D9: 150,000.00 lei | E9: =C9-D9 -> 50,000.00 lei | F9: 900,000.00 lei | G9: 750,000.00 lei | H9: =F9-G9 -> 150,000.00 lei
B10: Defalcare vânzări regionale:
B11: Regiunea de nord-est | C11: 400,000.00 lei | D11: 400,000.00 lei | E11: =C11-D11 -> 0.00 lei | F11: 2,200,000.00 lei | G11: 2,000,000.00 lei | H11: =F11-G11 -> 200,000.00 lei
B12: Regiunea centrală | C12: 400,000.00 lei | D12: 400,000.00 lei | E12: =C12-D12 -> 0.00 lei | F12: 2,400,000.00 lei | G12: 2,000,000.00 lei | H12: =F12-G12 -> 400,000.00 lei
B13: Regiunea de vest | C13: 400,000.00 lei | D13: 300,000.00 lei | E13: =C13-D13 -> 100,000.00 lei | F13: 1,600,000.00 lei | G13: 2,000,000.00 lei | H13: =F13-G13 -> -400,000.00 lei
B14: Cheltuieli și marjă:
B15: Cheltuieli cu vânzările, generale și administrative | C15: 100,000.00 lei | D15: 120,000.00 lei | E15: =D15-C15 -> 20,000.00 lei | F15: 500,000.00 lei | G15: 600,000.00 lei | H15: =G15-F15 -> 100,000.00 lei
B16: Profit de operare (pierdere) înainte de impozitare | C16: 50,000.00 lei | D16: 40,000.00 lei | E16: =C16-D16 -> 10,000.00 lei | F16: 140,000.00 lei | G16: 150,000.00 lei | H16: =F16-G16 -> -10,000.00 lei
B17: Marjă operațională | C17: =IF(C6=0,0,C16/C6) -> 4% | D17: =IF(D6=0,0,D16/D6) -> 4% | E17: =C17-D17 -> 1% | F17: =IF(F6=0,0,F16/F6) -> 2% | G17: =IF(G6=0,0,G16/G6) -> 3% | H17: =F17-G17 -> -0%
B19: Rezumat bilanț contabil | C19: Date reale pentru luna mai | D19: Obiective pentru luna mai | E19: Varianță lunară | F19: Date reale de la începutul anului până azi | G19: Obiective de la începutul anului până azi | H19: Varianță de la începutul anului până azi | I19: Note
B20: Flux monetar la sfârșitul perioadei | C20: 35,000.00 lei | D20: 50,000.00 lei | E20: =C20-D20 -> -15,000.00 lei | F20: 35,000.00 lei | G20: 50,000.00 lei | H20: =F20-G20 -> -15,000.00 lei | I20: Diferența de flux monetar s-a datorat decontării în numerar făcute în urma litigiului cu numele firmei din 8 mai.
B21: Conturi de creanțe | C21: 20,000.00 lei | D21: 22,000.00 lei | E21: -2,000.00 lei | F21: 20,000.00 lei | G21: 22,000.00 lei | H21: -2,000.00 lei
B22: Inventar | C22: 25,000.00 lei | D22: 30,000.00 lei | E22: -5,000.00 lei | F22: 25,000.00 lei | G22: 30,000.00 lei | H22: -5,000.00 lei
B23: Total active lichide | C23: 75,000.00 lei | D23: 90,000.00 lei | E23: -15,000.00 lei | F23: 75,000.00 lei | G23: 90,000.00 lei | H23: -15,000.00 lei
B24: Active cerute conform ratei de îndatorare | C24: 25,000.00 lei | D24: 25,000.00 lei | E24: 0.00 lei | F24: 25,000.00 lei | G24: 25,000.00 lei | H24: 0.00 lei
B25: Rezervă pentru rata de îndatorare | C25: =C23-C24 -> 50,000.00 lei | D25: =D23-D24 -> 65,000.00 lei | E25: -15,000.00 lei | F25: =F23-F24 -> 50,000.00 lei | G25: =G23-G24 -> 65,000.00 lei | H25: -15,000.00 lei
B26: Alte articole din bilanțul contabil:
B27: Proprietăți, instalații și echipamente | C27: 80,000.00 lei | D27: 78,000.00 lei | E27: =C27-D27 -> 2,000.00 lei | F27: 80,000.00 lei | G27: 78,000.00 lei | H27: =F27-G27 -> 2,000.00 lei | I27: Aceasta va fi investită pentru achiziționarea unui nou echipament de testare a exploziei în Unitatea B.
B28: Creanțe | C28: 60,000.00 lei | D28: 60,000.00 lei | E28: =D28-C28 -> 0.00 lei | F28: 60,000.00 lei | G28: 60,000.00 lei | H28: =F28-G28 -> 0.00 lei
B29: Pasive pe termen lung | C29: 30,000.00 lei | D29: 31,000.00 lei | E29: =D29-C29 -> 1,000.00 lei | F29: 30,000.00 lei | G29: 31,000.00 lei | H29: =G29-F29 -> 1,000.00 lei
B30: Capital propriu al acționarilor | C30: 300,000.00 lei | D30: 297,500.00 lei | E30: =C30-D30 -> 2,500.00 lei | F30: 300,000.00 lei | G30: 297,500.00 lei | H30: =F30-G30 -> 2,500.00 lei
B32: Rezumat măsurători operaționale | C32: Date reale pentru luna mai | D32: Obiective pentru luna mai | E32: Varianță lunară | F32: Date reale de la începutul anului până azi | G32: Obiective de la începutul anului până azi | H32: Varianță de la începutul anului până azi | I32: Note
B33: Numărul de defecte la 1.000 de widgeturi produse | C33: 2.3 | D33: 1.0 | E33: =D33-C33 -> -1.3 | F33: 1.5 | G33: 1.0 | H33: =F33-G33 -> 0.5 | I33: Problemele de calitate au fost cauzate de aplicarea incorectă a vopselei pe linia de producție 3. Managerul a implementat noi controale de detectare.
B34: Capacitatea de producție (unități pe lună) | C34: 200,000 | D34: 220,000 | E34: =C34-D34 -> -20,000 | F34: 1,100,000 | G34: 1,150,000 | H34: =F34-G34 -> -50,000
B35: Zile de vânzări rămase | C35: 35 | D35: 25 | E35: =D35-C35 -> -10 | F35: 33 | G35: 25 | H35: =G35-F35 -> -8
B36: Numărul de comenzi noi | C36: 19 | D36: 15 | E36: =C36-D36 -> 4 | F36: 83 | G36: 75 | H36: =F36-G36 -> 8
B38: Rezumat competitiv | C38: Profilul firmei dvs. | D38: Concurent 1 | E38: Concurent 2 | F38: Concurent 3 | G38: Concurent 4 | H38: Altele | I38: Note
B39: Cotă de piață | C39: 20.00% | D39: 25.00% | E39: 15.00% | F39: 5.00% | G39: 15.00% | H39: 20.00% | I39: Cota de piață a crescut datorită vânzărilor sporite ale noilor produse.
B40: Venit (de la începutul anului până azi) | C40: =F6 -> 6,200,000.00 lei | D40: 7,000,000.00 lei | E40: 4,000,000.00 lei | F40: 1,500,000.00 lei | G40: 4,000,000.00 lei | H40: 6,000,000.00 lei
B41: Lansări de produse noi (de la începutul anului până azi) | C41: 900,000.00 lei | D41: 500,000.00 lei | E41: 0.00 lei | F41: 100,000.00 lei | G41: 500,000.00 lei | H41: 0.00 lei
B42: Numărul de agenți de vânzări pe teren (estimat) | C42: 15 | D42: 20 | E42: 15 | F42: 10 | G42: 15 | H42: N/A

Sheet DIAGRAMA DE PROFIT ȘI PIERDERI
B2: DIAGRAMĂ REZUMAT PENTRU PROFIT ȘI PIERDERE | I2: ='REZUMATUL BUGETULUI'!I2 -> 2019
B3: ='REZUMATUL BUGETULUI'!B3 -> Numele firmei
B5: Diagrama cu bare care arată datele reale și obiectivele pentru o anumită lună și un anumit an se află în această celulă.

Sheet DIAGRAMA BALANȚEI
B2: DIAGRAMA REZUMAT BILANȚ CONTABIL | I2: ='REZUMATUL BUGETULUI'!I2 -> 2019
B3: ='REZUMATUL BUGETULUI'!B3 -> Numele firmei
B5: Diagrama cu bare care arată datele reale și obiectivele lunare se află în această celulă.
